Cogmind - Beta 13 @@@ ROGUE MODE // 2024.04.05 @ 01:35:58 Player: Jazz Result: Destroyed by G-34 Mercenary with Small Laser Performance ------------- Evolutions (1) 500 Regions Visited (2) 400 Robots Destroyed (13) 65 Value Destroyed (233) 233 Prototype IDs (0) 0 Alien Tech Used (0) 0 Bonus (0) 0 TOTAL SCORE: 1198 Bonus ------- None Cogmind --------- Core Integrity 0/400 Matter 244/300 Energy 100/100 System Corruption 0% Temperature Cool (6) Movement Core (150) Ox2 Location -9/Materials Parts ------- > --- POWER (1) -------- (None) > --- PROPULSION (4) --- (None) > --- UTILITY (2) ------ Small Storage Unit > --- WEAPON (2) ------- Light Assault Rifle Light Assault Rifle > --- INVENTORY (8) ---- (None) Peak State ------------ > --- POWER ------------ Ion Engine > --- PROPULSION ------- Light Treads Light Treads > --- UTILITY ---------- Small Storage Unit Terrain Scan Processor > --- WEAPON ----------- EM Pulse Gun Assault Rifle > --- INVENTORY -------- (None) [Rating: 8] Favorites ----------- Power Ion Engine Engine Ion Engine Propulsion Light Treads Treads Light Treads Leg Improved Aluminum Leg Utility Small Storage Unit Storage Small Storage Unit Processor Terrain Scan Processor Weapon Assault Rifle Energy Gun EM Pulse Gun Ballistic Gun Assault Rifle Special Weapon Plasma Cutter Build | -11 -10 -9 ------- Run | Yrd Mat Mat Slots Evolved 2 | . . 2 Power . | . . . Propulsion 2 | . . 2 Utility . | . . . Weapon . | . . . Parts Attached 16 | 7 2 7 Power 4 | 2 1 1 Engine 4 | 2 1 1 Core . | . . . Reactor . | . . . Propulsion 4 | 2 . 2 Treads 3 | 2 . 1 Leg 1 | . . 1 Wheel . | . . . Hover . | . . . Flight . | . . . Utility 2 | 1 1 . Device . | . . . Storage 1 | 1 . . Processor 1 | . 1 . Hackware . | . . . Protection . | . . . Artifact . | . . . Weapon 6 | 2 . 4 Energy Gun 2 | 1 . 1 Energy Cannon . | . . . Ballistic Gun 3 | 1 . 2 Ballistic Cannon . | . . . Launcher . | . . . Special Weapon 1 | . . 1 Impact Weapon . | . . . Slashing Weapon . | . . . Piercing Weapon . | . . . Special Melee Weapon . | . . . Unidentified Prototypes . | . . . Parts Lost 9 | . 3 6 Power 2 | . 1 1 Propulsion 4 | . 1 3 Utility . | . . . Weapon 3 | . 1 2 Highest Loss Streak 3 | . 3 3 To Critical Strikes . | . . . Average Slot Usage (%) 71 | . 95 37 Engine 8 | . 13 2 Treads 19 | . 27 8 Storage 12 | . 14 11 Processor 7 | . 13 . Energy Gun 8 | . 12 2 Ballistic Gun 10 | . 14 4 Special Weapon 2 | . . 6 Naked Turns . | . . . Heaviest Build 14 | 14 14 10 Greatest Support 40 | 40 40 23 Greatest Overweight (x) 3 | . . 3 Average Overweight (x) . | . . . Largest Inventory Capacity 8 | 8 8 8 Average Capacity 7 | 6 8 8 Most Carried 2 | 2 1 2 Average Carried . | . . . Final Capacity 8 | 8 8 8 Final Carried 1 | . 1 . Class Distribution -------------------- 100% | Mutant Dominant Class ---------------- Mutant | -10/Materials Mutant | -9/Materials Resources | -11 -10 -9 ----------- Run | Yrd Mat Mat Matter Collected 383 | 225 158 . Remotely . | . . . Salvage Created 301 | . 228 73 Parts 27 | . 21 6 Haulers Intercepted . | . . . Recyclers Shooed . | . . . Parts Field Recycled . | . . . Retrieved Matter . | . . . Parts Self-Destructed . | . . . Prevented . | . . . Kills | -11 -10 -9 ------- Run | Yrd Mat Mat Combat Hostiles Destroyed 11 | . 6 5 Guns 9 | . 6 3 Cannons 1 | . . 1 AOE 1 | . . 1 Classes Destroyed 4 | . 4 . Builder 1 | . 1 . Operator 1 | . 1 . Swarmer 8 | . 3 5 Grunt 3 | . 3 . Best Kill Streak 3 | . 3 3 Combat Bots Only 3 | . 3 3 Max Kills in Single Turn 1 | . 1 1 Gunslinging . | . . . Exploded 1 | . . 1 Melee . | . . . Uniques/NPCs Destroyed . | . . . Combat | -11 -10 -9 -------- Run | Yrd Mat Mat Hostile Shots Fired 212 | . 73 139 Missed 73 | . 25 48 Damage Taken 1580 | . 604 976 Core 486 | . 82 404 Absorbed by Shields . | . . . Core Remaining (%) 83 | 100 67 . Volleys Fired 53 | . 38 15 Largest 2 | . 2 2 Hottest 65 | . 60 65 Shots Fired 85 | . 65 20 Gun 82 | . 65 17 Cannon . | . . . Launcher . | . . . Special 3 | . . 3 Kinetic 48 | . 38 10 Thermal 3 | . . 3 Explosive . | . . . Electromagnetic 34 | . 27 7 Robot Hit Streak 5 | . 5 4 Robot Miss Streak 5 | . 5 4 Penetration Max . | . . . Secondary Targets 1 | . 1 . Max Gunslinging Chain 1 | . 1 . Shots Hit Robots 45 | . 35 10 Core Hits 20 | . 14 6 Critical Kills . | . . . Critical Parts Destroyed . | . . . Critical Strikes 2 | . . 2 Corrupt 2 | . . 2 Melee Attacks . | . . . Impact . | . . . Slashing . | . . . Piercing . | . . . Sneak Attacks . | . . . Combat Hostiles . | . . . Follow-up Attacks . | . . . Damage Inflicted 617 | . 463 154 Guns 562 | . 463 99 Cannons . | . . . Explosions 44 | . . 44 Melee . | . . . Ramming . | . . . Kinetic 273 | . 239 34 Thermal 55 | . . 55 Explosive . | . . . Electromagnetic 289 | . 224 65 Impact . | . . . Slashing . | . . . Piercing . | . . . Highest Corruption . | . . . Average Corruption . | . . . Corruption Purged . | . . . Corruption Blocked . | . . . Overload Shots . | . . . Overflow Damage 16 | . . 16 Projectiles . | . . . Explosions 16 | . . 16 Melee . | . . . Knockbacks . | . . . Impact . | . . . Kinetic . | . . . Secondary . | . . . Self-Inflicted Damage 27 | . . 27 Shots 2 | . . 2 Rammed . | . . . Targets Rammed . | . . . Kicked . | . . . Crushed . | . . . Highest Temperature 78 | . 78 11 Average Temperature 21 | . 22 6 Received Heat Transfer 540 | . 351 189 Siege Activations . | . . . Robots Corrupted . | . . . Combat Hostiles . | . . . Parts Fried . | . . . Impact Corruptions . | . . . Robots Melted . | . . . Combat Hostiles . | . . . Parts Melted . | . . . Heat Transferred 37 | . . 37 Parts Sabotaged . | . . . Parts Stolen . | . . . Parts Stripped . | . . . Power Chain Reactions 2 | . . 2 Alert | -11 -10 -9 ------- Run | Yrd Mat Mat Peak Influence 245 | . 245 141 Initial 12 | . . 12 Average 65 | . 89 58 Maximum Alert Level 1 | . 1 . Low Security (%) 93 | 100 86 100 Level 1 6 | . 13 . Level 2 . | . . . Level 3 . | . . . Level 4 . | . . . Level 5 . | . . . High Security . | . . . Max Security . | . . . Squads Dispatched 4 | . 3 1 Investigation 1 | . 1 . Extermination . | . . . Reinforcement 3 | . 2 1 Assault . | . . . Garrison . | . . . Intercept . | . . . Searches Triggered . | . . . Construction Impeded . | . . . Haulers Reinforced . | . . . Active Scanning Responses . | . . . Cargo Convoy Interrupts . | . . . Stealth | -11 -10 -9 --------- Run | Yrd Mat Mat Distress Signals . | . . . Communications Jammed . | . . . Distress Signals . | . . . Times Spotted 31 | . 15 16 Peak Tracking Total 9 | . 3 9 Tactical Retreats 2 | . 2 . Traps | -11 -10 -9 ------- Run | Yrd Mat Mat Traps Triggered 1 | . . 1 Indirectly . | . . . Trap Hack Attempts . | . . . Triggered . | . . . Disarmed . | . . . Reprogrammed . | . . . Reused . | . . . Traps Extracted . | . . . Installed . | . . . Triggered . | . . . Machines | -11 -10 -9 ---------- Run | Yrd Mat Mat Machines Disabled 3 | . 1 2 Max in Single Turn 2 | . 1 2 Machines Repaired . | . . . Machines Dismantled 1 | . . 1 Machines Sabotaged . | . . . Overloaded Fab Kills . | . . . Hacking | -11 -10 -9 --------- Run | Yrd Mat Mat Machines Accessed 1 | . 1 . Terminals . | . . . Fabricators . | . . . Repair Stations . | . . . Recycling Units 1 | . 1 . Scanalyzers . | . . . Garrison Access . | . . . Total Hacks 3 | . 3 . Successful 3 | . 3 . Failed . | . . . Catastrophic . | . . . Database Lockouts . | . . . Manual . | . . . Terminals . | . . . Fabricators . | . . . Repair Stations . | . . . Recycling Units 3 | . 3 . Scanalyzers . | . . . Garrison Access . | . . . Terminal Hacks . | . . . Fabricator Hacks . | . . . Repair Station Hacks . | . . . Recycling Unit Hacks 3 | . 3 . Process 1 | . 1 . Report Inventory 1 | . 1 . Retrieve Matter 1 | . 1 . Scanalyzer . | . . . Garrison Access Hacks . | . . . Unauthorized Hacks . | . . . Terminals . | . . . Fabricators . | . . . Repair Stations . | . . . Recycling Units . | . . . Scanalyzers . | . . . Garrison Access . | . . . Data Cores Recovered . | . . . Used . | . . . Hacking Detections 1 | . 1 . Full Trace Events 1 | . 1 . Feedback Events . | . . . Feedback Blocked . | . . . Robot Schematics Acquired . | . . . Robots Built . | . . . Authchips . | . . . Time . | . . . Total Robot Build Rating . | . . . Part Schematics Acquired . | . . . Parts Built . | . . . Authchips . | . . . Time . | . . . Total Part Build Rating . | . . . Parts Repaired . | . . . Time . | . . . Parts Recycled . | . . . Recycled Matter 49 | . 49 . Retrieved Matter 49 | . 49 . Retrieved Components . | . . . Parts Scanalyzed . | . . . Part Schematics Acquired . | . . . Parts Damaged . | . . . Bothacking | -11 -10 -9 ------------ Run | Yrd Mat Mat Used RIF Installer . | . . . Robots Hacked . | . . . Non-combat . | . . . Combat . | . . . Robot Hacks Applied . | . . . Relay Couplers Released . | . . . Fabnet Peak Effective % . | . . . Robots Rewired . | . . . Allies Hacked . | . . . Hacks Repelled . | . . . Allies | -11 -10 -9 -------- Run | Yrd Mat Mat Total Allies . | . . . Largest Group . | . . . Highest-Rated Group . | . . . Highest-Rated Ally . | . . . Total Orders . | . . . Ally Attacks . | . . . Total Damage . | . . . Kills . | . . . Allies Corrupted . | . . . Allies Melted . | . . . Intel | -11 -10 -9 ------- Run | Yrd Mat Mat Robot Analysis Total . | . . . Derelict Logs Recovered . | . . . Drone Launches . | . . . Drone Recoveries . | . . . Exploration | -11 -10 -9 ------------- Run | Yrd Mat Mat Turns Passed 869 | 129 441 299 Spaces Moved 435 | 73 200 162 Core 58 | 11 . 47 Treads 376 | 62 200 114 Legs 1 | . . 1 Wheels . | . . . Hover . | . . . Flight . | . . . Fastest Speed 50 | 50 160 100 Average Speed 152 | 143 160 146 Slowest Speed 200 | 160 160 200 Overloaded Moves . | . . . Propulsion Burnouts . | . . . Robots Hopped . | . . . Cave-ins Triggered . | . . . Exploration Rate (%) 19 | 4 31 22 Regions Visited 2 Branch Regions . Pre-discovered Areas . | . . . Known Exits Taken . | . . . Unknown Exits Taken 2 | 1 1 . Scrap Searched . | . . . Spaces Dug . | . . . Terrain Destroyed 3 | . . 3 Melee . | . . . Projectile . | . . . AOE 3 | . . 3 Terrain Rammed . | . . . Walls Destroyed . | . . . Machines Disabled . | . . . Actions | -11 -10 -9 --------- Run | Yrd Mat Mat Total 549 | 97 256 196 Wait 23 | 10 13 . Move 433 | 72 199 162 Hop . | . . . Pick Up 16 | 7 3 6 Fast Attach . | . . . Attach 14 | 6 1 7 Detach . | . . . Swap 2 | 1 1 . Drop 4 | 1 1 2 Fire 53 | . 38 15 Melee . | . . . Ram . | . . . Kick . | . . . Crush . | . . . Escape Stasis . | . . . Rewire . | . . . Trap . | . . . Miscellaneous 4 | . . 4 Route ------- -11/Scrapyard -10/Materials -9/Materials History --------- Turn | Location | Event 16 | -11/Scrapyard | Discovered new exit (range 15) 130 | -11/Scrapyard | Entered Materials 314 | -10/Materials | Build established: Mutant 430 | -10/Materials | Discovered new exit (range 15) 571 | -10/Materials | Entered another Materials area 571 | -9/Materials | Evolved 2 slots: Propulsion x2 578 | -9/Materials | Lost 3 parts (1p1n1w) 797 | -9/Materials | Lost 3 parts (1n2w) 832 | -9/Materials | Core integrity fell below 50% 859 | -9/Materials | Core integrity fell below 20% 870 | -9/Materials | Destroyed by G-34 Mercenary with Small Laser Last Messages --------------- 00766_ An explosion rips through the floor. 00766_ Plasma Cutter destroyed. 00773_ Critical hit (Burn: +37). 00773_ Acquired Imp. Aluminum Leg. 00777_ Acquired Imp. Treads. Different forms of propulsion may not be used simultaneously, Imp. Aluminum Leg automatically deactivated. 00798_ O-16 Technician: "IFF HANDSHAKE FAILED. SECURING TERMINAL." 00805_ ALERT: Hostiles spotted, dispatching reinforcements to Terminal M005. 00811_ S-10 Pest destroyed. 00815_ K-01 Serf collects debris. 00823_ Critical hit (Burn: +37). 00826_ Imp. Treads destroyed. 00826_ Imp. Aluminum Leg destroyed. 00840_ Ion Engine destroyed. 00849_ Acquired Lgt. Assault Rifle. 00851_ S-10 Pest destroyed. 00862_ M-13 Machinist repairs Flight Unit. 00864_ Acquired Lgt. Assault Rifle. Map ----- +----------------------------------------------------+ | ??????????????????????????????####+### + | | ??????????????????????????????# # | | ??????????????????????????????# # | | ??????????????????????????????# # | | ??????????????????????????????# ######## | | ??????????????????????????????# #??????######### | | ??????????????????????????????# #??????????????? | | ????????????"???????????????? + #??????????????? | | ???????????"R" """??????????? # #??????????????? | | ???????????" " """ ???????????# #??????????????? | | ??????????? """ ???????????# #??????????????? | | ???????????? ???????????# ##########?????? | | ?????????????? ???????????# # #?????? | | ???????????????? ???????????# # #?????? | | ????????????????##+############ # #?????? | | ?????????######## # #?????? | | ????????? + #?????? | | ????????????????# # #?????? | | ????????????????# ####+####### # #?????? | | ????????????????# # ## #""" #?????? | | ????????????????# # """"""" ## # #?????? | | ????????????????# #Y""""""" ## ##########?????? | | ????????????????# # """"""" ## #??????????????? | | ????????????????# # """"""" ## ##?????????????? | | ????????????????# # """"""" # #?????????????? | | ????????????????# #%*Y@%sm # T #?????????????? | | ????????????????# # Yg ! # #?????????????? | | ????????????????# ############ ##?????????????? | | ????????????????# #??????????# #??????????????? | | ????????????????# ############ #??????????????? | | ????????????????# ## ## #??????????????? | | ???????########## # """ ## #??????????????? | | ?????? # """ ## #??????????????? | | ????? / """ ## #??????????????? | | ?????? ^ # ## ##?????????????? | | ??????+### """ # "" ## #??#+###??????? | | ?????????# % """ ! ## ! """ # #? #??????? | | ?????????# """% ## S" # ## #??????? | | ?????????# ## +??????? | | ?????????# ########## #! #??????? | | ??????????? !!! ????????## ##?? #??????? | | ??????????? !!! ?????????# T #?????##??????? | | ?????????? !!! ?????????# #?????????????? | | ?????????# ?????????# #?????????????? | | ?????????? ?????????#* #?????????????? | | ?????????? ?????????# #?????????????? | | ???????????? ##### ??????????# / ????????????? | | ?????????????????# ???????????# #### ???????????? | | ?????????????????#?????????????###???? ??????????? | | ???????????????????????????????????????#?????????? | +----------------------------------------------------+ Best States ------------- Heat Dissipation 28 Energy Generation 10 Energy Capacity 250 Matter Stores 300 Matter Capacity 300 Sight Range 16 Terrain Scan Density 85 Evasion (%) 40 Recoil Reduction 2 Item Schematics ----------------- None Robot Schematics ------------------ None Fabricated ------------ Nothing Alien Tech Used ----------------- None Achievements -------------- None Challenges ------------ None Game ------ Seed DisruptionLatentCleaver Manual? 0 Play Time 00:32:39 Cumulative 6.9 hours Start 2024.04.05 @ 00:58:02 End 2024.04.05 @ 01:35:58 Sessions 2 Manual Loads 0 Difficulty Rogue Special Mode None Game No. 7 Rogue 7 Adventurer 0 Explorer 0 Win Type - Total 0 Types 0/0/0/0/0/0/0/0/0 Lore% 5 Gallery% 11 Achievement% 13 Wizard Run 0 Options --------- Layout 0 ASCII 0 Keyboard 0 Movement Mouse Keybinds 0 Fullscreen 2 Font 24/Smallcaps Map View 38x25 Zoom Use 95% Tactical HUD 1 Map Filters NONE Filters NONE Steam 1 RUN: 3a048a2e-7330-4dc1-8bff-c628f1ea22cb